bitfinex-derivatives/quotes_SOLF0:USTF0_20260129
["timestamp","ask_amount","ask_price","bid_price","bid_amount"]
[1769724220677,6.66163779,117.49,117.45,13.88387884]
[1769724220874,29.11427734,117.5,117.45,13.88387884]
[1769724221065,6.66163779,117.49,117.45,13.88387884]
[1769724221266,29.11427734,117.5,117.45,13.88387884]
[1769724221570,6.66207537,117.49,117.45,13.88387884]
[1769724221878,29.11427734,117.5,117.45,13.88387884]
[1769724222079,6.66207537,117.49,117.45,13.88387884]
[1769724222379,29.11427734,117.5,117.45,13.88387884]
[1769724222678,6.66302682,117.49,117.45,13.88387884]
[1769724222868,29.11427734,117.5,117.45,13.88387884]
[1769724223074,6.66302682,117.49,117.45,13.88387884]
[1769724223272,29.11427734,117.5,117.45,13.88387884]
[1769724223574,6.66418189,117.49,117.45,13.88387884]
[1769724223774,29.11427734,117.5,117.45,13.88387884]
[1769724224073,6.66418189,117.49,117.45,13.88387884]
[1769724224274,6.66566136,117.48,117.45,13.88387884]
[1769724224572,29.11427734,117.5,117.45,13.88387884]
[1769724224769,6.66566136,117.49,117.45,13.88387884]
[1769724224969,6.66566136,117.48,117.45,13.88387884]
[1769724225168,29.11427734,117.5,117.45,13.88387884]
[1769724225469,6.6656964,117.49,117.45,13.88387884]
[1769724225668,6.6656964,117.48,117.45,13.88387884]
[1769724225871,29.11427734,117.5,117.45,13.88387884]
[1769724226070,6.66569456,117.49,117.45,13.88387884]
[1769724226276,6.66569456,117.48,117.45,13.88387884]
[1769724226576,29.11427734,117.5,117.45,13.88387884]
[1769724226776,6.66617659,117.49,117.45,13.88387884]
[1769724226974,6.66617659,117.48,117.45,13.88387884]
[1769724227176,29.11427734,117.5,117.45,13.88387884]
[1769724227382,6.66623804,117.49,117.45,13.88387884]
[1769724227577,6.66623804,117.48,117.45,13.88387884]
[1769724227874,29.11427734,117.5,117.45,13.88387884]
[1769724228077,6.66623804,117.49,117.45,13.88387884]
[1769724228280,6.66623804,117.48,117.45,13.88387884]
[1769724228480,29.11427734,117.5,117.45,13.88387884]
[1769724228676,6.66633702,117.49,117.45,13.88387884]
[1769724228880,6.66633702,117.48,117.45,13.88387884]
[1769724229082,29.11427734,117.5,117.45,13.88387884]
[1769724229284,6.66617545,117.49,117.45,13.88387884]
[1769724229576,7.97752978,117.53,117.46,16.55990844]
[1769724229780,7.98151413,117.55,117.49,19.32953788]
[1769724229984,10.76720409,117.56,117.49,19.32953788]
[1769724230285,7.6703,117.54,117.49,19.32953788]
[1769724234790,22.6761616,117.53,117.49,16.54384792]
[1769724234986,25.46185156,117.53,117.49,16.54384792]
[1769724235186,33.13285156,117.53,117.49,16.54384792]
[1769724236792,30.3471616,117.53,117.49,16.54384792]
[1769724238494,22.6761616,117.53,117.49,16.54384792]
[1769724239696,22.6761616,117.53,117.49,19.32953788]
[1769724240195,22.6761616,117.53,117.49,16.54384792]
[1769724242692,31.3682693,117.55,117.49,16.54384792]
[1769724242893,31.3682693,117.55,117.49,27.00303788]
[1769724243394,20.91237934,117.54,117.49,27.00303788]
[1769724243591,20.91237934,117.54,117.49,27.00078371]
[1769724244094,20.91237934,117.54,117.5,26.54186655]
[1769724244302,7.6691,117.56,117.5,26.54186655]
[1769724244596,28.58147934,117.56,117.51,2.78343579]
[1769724245191,28.58147934,117.56,117.5,23.75843076]
[1769724245394,20.91237934,117.55,117.5,26.54186655]
[1769724245698,20.91237934,117.55,117.51,16.05988151]
[1769724246897,23.69581513,117.55,117.51,16.05988151]
[1769724248898,23.69581513,117.55,117.51,23.73218151]
[1769724249099,23.69581513,117.57,117.51,16.05988151]
[1769724249298,23.69581513,117.57,117.51,18.8433173]
[1769724250302,23.69581513,117.57,117.52,7.6716]
[1769724250598,7.6682,117.58,117.53,15.91334525]
[1769724250801,20.91237934,117.59,117.54,23.58364525]
[1769724251096,20.91237934,117.59,117.54,26.36708104]
[1769724252904,2.78343579,117.6,117.55,23.53634546]
[1769724253103,31.36161513,117.61,117.55,23.53634546]
[1769724253698,28.57747934,117.63,117.56,15.84386702]
[1769724253904,20.91237934,117.63,117.58,18.62730281]
[1769724254498,20.91237934,117.63,117.59,7.6669]
[1769724255696,20.91237934,117.63,117.58,18.62730281]
[1769724255902,20.91237934,117.63,117.58,15.84386702]
[1769724256201,23.69581513,117.63,117.58,15.84386702]
[1769724256810,20.91237934,117.63,117.58,15.84386702]
[1769724257006,23.69581513,117.63,117.58,15.84386702]
[1769724258200,20.91237934,117.63,117.58,15.84386702]
[1769724258405,23.69581513,117.63,117.58,15.84386702]
[1769724258596,23.69581513,117.63,117.58,23.51136702]
[1769724258799,7.6632,117.65,117.59,15.73255068]
[1769724258800,2.78343579,117.64,117.59,15.73255068]
[1769724259002,23.69581513,117.64,117.59,15.73255068]
[1769724259805,2.78343579,117.63,117.59,15.73255068]
[1769724260407,2.78343579,117.63,117.59,23.39945068]
[1769724262811,23.69581513,117.64,117.59,23.39945068]
[1769724263110,23.69581513,117.63,117.58,7.6677]
[1769724263907,23.69581513,117.63,117.58,23.29492551]
[1769724272221,20.91237934,117.63,117.58,23.29492551]
[1769724272428,29.00539538,117.67,117.6,18.25540671]
[1769724272623,21.34339538,117.66,117.6,18.25540671]
[1769724272823,2.78343579,117.65,117.6,15.47197092]
[1769724273516,2.78343579,117.67,117.62,23.11826752]
[1769724274430,21.34339538,117.68,117.62,23.11826752]
[1769724274627,2.78343579,117.67,117.62,23.11826752]
[1769724275029,24.12683117,117.68,117.62,23.11826752]
[1769724276827,2.78343579,117.67,117.62,23.11826752]
[1769724278636,24.12683117,117.68,117.63,22.97603846]
[1769724280833,31.78843117,117.68,117.62,2.78343579]
[1769724281137,25.45709143,117.66,117.61,22.8938462]
[1769724281337,22.67365564,117.66,117.61,22.8938462]
[1769724284137,22.67365564,117.66,117.61,25.67728199]
[1769724285532,2.78343579,117.67,117.62,22.69745459]
[1769724285738,2.78343579,117.67,117.63,14.98471936]
[1769724286138,25.45709143,117.67,117.63,14.98471936]
[1769724286336,22.67365564,117.67,117.63,14.98471936]
[1769724289549,22.67365564,117.67,117.63,22.64911936]
[1769724289746,25.45709143,117.69,117.63,25.43255515]
[1769724290340,25.45709143,117.69,117.63,22.64911936]
[1769724291451,22.67365564,117.68,117.63,22.64911936]
[1769724291945,22.67365564,117.68,117.63,25.43255515]
[1769724292651,22.67365564,117.68,117.64,7.6638]
[1769724294147,22.67365564,117.68,117.64,22.28638425]
[1769724294347,33.11699143,117.7,117.64,22.28638425]
[1769724294547,22.67365564,117.69,117.64,22.28638425]
[1769724295153,22.67365564,117.69,117.64,25.06982004]
[1769724295541,22.67365564,117.69,117.65,7.663]
[1769724299843,22.67365564,117.69,117.65,21.99653032]
[1769724300049,3.74879243,117.71,117.66,24.77946611]
[1769724300246,26.02669657,117.71,117.66,7.6625]
[1769724300457,28.81013236,117.71,117.66,7.6625]
[1769724300753,26.02669657,117.71,117.67,7.6618]
[1769724300961,22.27790414,117.73,117.67,17.07730254]
[1769724301260,22.27790414,117.73,117.68,7.6611]
[1769724301450,25.06133993,117.73,117.68,7.6611]
[1769724302853,22.27790414,117.73,117.68,21.87694174]
[1769724303856,25.06133993,117.73,117.68,21.87694174]
[1769724304056,22.27790414,117.73,117.68,21.87694174]
[1769724304258,25.06133993,117.73,117.68,21.87694174]
[1769724305554,25.05301726,117.73,117.68,21.87694174]
[1769724305956,25.05301726,117.73,117.68,7.6611]
[1769724306164,2.77511312,117.74,117.69,21.76160641]
[1769724306359,25.05301726,117.74,117.69,21.76160641]
[1769724307263,25.05301726,117.74,117.69,14.10110641]
[1769724307562,25.05301726,117.73,117.68,7.6611]
[1769724307963,25.05301726,117.73,117.68,21.68844651]
[1769724308769,22.27790414,117.73,117.68,21.68844651]
[1769724309065,25.05301726,117.73,117.68,21.68844651]
[1769724310767,22.27790414,117.73,117.68,21.68844651]
[1769724312964,22.27790414,117.73,117.68,24.46355963]
[1769724313164,22.27790414,117.73,117.69,21.51051359]
[1769724316676,22.27790414,117.73,117.69,7.6605]
[1769724317674,22.27790414,117.73,117.69,21.34336845]
[1769724320073,25.05301726,117.73,117.69,21.34336845]
[1769724321679,25.05301726,117.73,117.69,7.6605]
[1769724323874,2.77511312,117.71,117.66,13.49434783]
[1769724324269,25.05301726,117.72,117.66,13.49434783]
[1769724324679,25.05301726,117.72,117.67,7.6613]
[1769724325269,25.05301726,117.72,117.67,21.12549726]
[1769724327078,25.05301726,117.72,117.67,7.6613]
[1769724328982,2.77511312,117.71,117.67,7.6613]
[1769724331784,22.27790414,117.72,117.67,7.6613]
[1769724332082,2.77511312,117.71,117.67,7.6613]
[1769724332483,2.77511312,117.71,117.67,20.88213423]
[1769724334382,25.05301726,117.72,117.67,20.88213423]
[1769724336090,2.77511312,117.71,117.67,20.88213423]
[1769724336287,2.77511312,117.73,117.69,13.0877753]
[1769724336892,22.90017747,117.73,117.69,13.0877753]
[1769724338093,20.12506435,117.73,117.69,13.0877753]
[1769724338994,20.12506435,117.73,117.69,20.7480753]
[1769724340592,20.12506435,117.73,117.69,7.6603]
[1769724353503,20.12506435,117.73,117.69,10.43541312]
[1769724355100,20.12506435,117.73,117.69,7.6603]
[1769724356906,20.12506435,117.73,117.68,12.92026167]
[1769724357101,19.38406266,117.71,117.66,15.25979036]
[1769724357400,19.38406266,117.71,117.66,12.48467724]
[1769724357606,19.38406266,117.71,117.66,15.25979036]
[1769724358409,19.38406266,117.71,117.67,7.6618]
[1769724360722,22.15917578,117.69,117.63,2.77511312]
[1769724361222,19.38406266,117.67,117.63,2.77511312]
[1769724361519,19.38406266,117.67,117.62,22.8269877]
[1769724362120,19.38406266,117.67,117.63,10.43941312]
[1769724362320,19.38406266,117.69,117.63,22.80258947]
[1769724365228,22.15917578,117.69,117.63,22.80258947]
[1769724367530,22.16130504,117.69,117.63,22.80471873]
[1769724368029,19.38406266,117.68,117.63,22.80471873]
[1769724368730,22.16130504,117.68,117.63,7.6643]
[1769724370730,19.38406266,117.66,117.62,7.6651]
[1769724371226,22.16130504,117.66,117.61,12.16144064]
[1769724372226,22.16130504,117.66,117.6,10.44324238]
[1769724372625,22.16130504,117.65,117.6,7.666]
[1769724373935,19.38406266,117.63,117.59,351.40038831]
[1769724374818,19.38406266,117.63,117.59,339.26]
[1769724375331,19.38406266,117.63,117.59,346.9268]
[1769724377937,22.16130504,117.63,117.59,339.26]
[1769724380035,19.38406266,117.63,117.59,342.03724238]
[1769724381827,22.16130504,117.63,117.59,339.26]
[1769724382031,19.38406266,117.63,117.59,339.26]
[1769724383429,27.04856266,117.63,117.59,339.26]
[1769724383630,27.04856266,117.63,117.58,14.72047765]
[1769724384033,22.16130504,117.65,117.59,14.68391738]
[1769724384736,27.04796266,117.64,117.59,14.68391738]
[1769724387036,27.04796266,117.64,117.6,2.77724238]
[1769724388741,27.04796266,117.64,117.6,14.5926734]
[1769724389134,19.03873955,117.66,117.62,2.77724238]
[1769724389339,19.03873955,117.68,117.63,2.77724238]
[1769724390436,7.6624,117.67,117.63,2.77724238]
[1769724390636,19.03873955,117.68,117.63,2.77724238]
[1769724391039,7.6619,117.67,117.63,14.55904405]
[1769724391246,121.93434238,117.7,117.64,14.55904405]
[1769724391247,19.03873955,117.7,117.64,14.55904405]
[1769724391642,7.6609,117.69,117.64,14.55904405]
[1769724391836,26.69963955,117.69,117.64,14.55904405]
[1769724392748,26.70003955,117.68,117.63,2.77724238]
[1769724392941,19.03873955,117.68,117.63,14.52518323]
[1769724393245,19.03873955,117.68,117.64,2.77724238]
[1769724396349,19.03873955,117.68,117.63,14.52518323]
[1769724397650,19.03873955,117.68,117.64,2.77724238]
[1769724398344,20.05564265,117.7,117.64,14.41249489]
[1769724398548,20.05564265,117.7,117.65,14.41249489]
[1769724398945,20.05564265,117.7,117.66,2.77724238]
[1769724399345,20.05564265,117.7,117.65,14.41249489]
[1769724406456,20.05564265,117.7,117.65,11.63525251]
[1769724406654,20.05564265,117.7,117.65,14.41249489]
[1769724407959,27.71504265,117.7,117.65,14.41249489]
[1769724409257,20.05564265,117.69,117.65,11.63525251]
[1769724409554,22.83288503,117.71,117.65,14.41249489]
[1769724409855,20.05564265,117.71,117.65,14.41249489]
[1769724410257,20.05564265,117.7,117.65,14.41249489]
[1769724411658,20.05564265,117.7,117.65,11.63525251]
[1769724414555,20.05564265,117.7,117.65,14.41249489]
[1769724415061,30.49078503,117.72,117.66,13.26069403]
[1769724415466,19.35087122,117.71,117.66,13.26069403]
[1769724416352,19.35087122,117.71,117.66,20.92209403]
[1769724417771,19.35087122,117.71,117.66,18.14485165]
[1769724418967,22.1281136,117.73,117.68,10.16649517]
[1769724419972,19.35087122,117.72,117.67,7.661]
[1769724420272,19.35087122,117.72,117.67,17.76707429]
[1769724422572,19.35087122,117.72,117.67,20.54431667]
[1769724424362,19.35087122,117.72,117.67,17.76707429]
[1769724426577,22.1281136,117.72,117.67,17.76707429]
[1769724427572,22.12601438,117.72,117.67,17.76707429]
[1769724428279,19.35087122,117.72,117.67,17.76707429]
[1769724432572,19.35087122,117.72,117.67,20.54221745]
[1769724438384,19.35087122,117.72,117.67,17.76707429]
[1769724439189,22.12601438,117.72,117.67,17.76707429]
[1769724441592,19.35087122,117.72,117.67,20.54221745]
[1769724442090,22.12601438,117.72,117.67,17.76707429]
[1769724444285,19.35087122,117.72,117.67,17.76707429]
[1769724445193,22.12601438,117.72,117.67,17.76707429]
[1769724451797,21.57487978,117.69,117.63,16.1184498]
[1769724451996,18.79973662,117.68,117.63,16.1184498]
[1769724452697,21.57487978,117.68,117.63,16.1184498]
[1769724453395,18.79973662,117.69,117.64,16.07741151]
[1769724453701,21.57487978,117.69,117.65,8.41441151]
[1769724461297,21.57487978,117.69,117.63,18.48270406]
[1769724461504,21.57487978,117.69,117.64,8.0443609]
[1769724462901,2.77514316,117.68,117.64,8.0443609]
[1769724470499,21.32979926,117.68,117.63,7.6632]
[1769724470705,2.77514316,117.67,117.63,7.6632]
[1769724471208,2.77514316,117.67,117.63,15.36414878]
[1769724473309,21.32979926,117.68,117.63,15.36414878]
[1769724474510,2.77514316,117.67,117.63,15.36414878]
[1769724476706,21.32979926,117.68,117.63,15.36414878]
[1769724487923,18.5546561,117.68,117.63,15.36414878]
[1769724493331,21.33156792,117.68,117.63,15.36414878]
[1769724495635,21.33156792,117.68,117.63,7.70094878]
[1769724502641,18.5546561,117.68,117.63,7.70094878]
[1769724506135,18.5546561,117.68,117.62,7.6643]
[1769724506336,18.21251476,117.67,117.62,17.18771895]
[1769724513845,18.21251476,117.67,117.62,9.52341895]
[1769724514339,23.5976614,117.66,117.62,6.74650713]
[1769724514643,16.88549555,117.66,117.62,6.74650713]
[1769724515744,19.66240737,117.66,117.61,339.28]
[1769724516437,19.66240737,117.65,117.61,339.28]
[1769724519144,19.66240737,117.65,117.6,6.50205577]
[1769724521639,16.88549555,117.65,117.6,6.50205577]
[1769724522448,19.66240737,117.64,117.59,7.6662]
[1769724522946,19.66240737,117.64,117.59,14.04453403]
[1769724523549,19.66240737,117.64,117.59,6.37833403]
[1769724533349,27.32540737,117.64,117.59,6.37833403]
[1769724533551,16.88549555,117.63,117.59,6.37833403]
[1769724535953,16.88549555,117.63,117.58,2.77691182]
[1769724536953,17.98423308,117.61,117.57,339.32]
[1769724539356,17.98423308,117.61,117.57,348.25652073]
[1769724543764,17.98423308,117.61,117.55,13.75843937]
[1769724543957,20.7611449,117.6,117.54,2.77691182]
[1769724544156,20.7611449,117.6,117.54,8.86655119]
[1769724545562,17.98423308,117.59,117.54,8.86655119]
[1769724547162,17.98423308,117.58,117.53,649.56256783]
[1769724547468,17.98423308,117.58,117.53,655.61222216]
[1769724549668,17.98423308,117.58,117.53,655.61712981]
[1769724550080,17.98423308,117.58,117.53,652.83531034]
[1769724550377,17.98423308,117.58,117.53,655.61712981]
[1769724552873,17.98423308,117.58,117.54,2.78181947]
[1769724553179,17.98423308,117.58,117.53,652.83531034]
[1769724553371,17.98423308,117.58,117.53,655.61712981]
[1769724557686,17.98423308,117.6,117.55,8.70744319]
[1769724557877,17.98423308,117.6,117.55,2.78181947]
[1769724558077,17.98423308,117.58,117.53,652.6996108]
[1769724558379,17.98423308,117.58,117.54,2.78181947]
[1769724561788,17.98423308,117.58,117.53,652.6996108]
[1769724561995,20.76605255,117.58,117.53,646.78565601]
[1769724563184,17.98423308,117.58,117.53,646.78565601]
[1769724563385,17.98423308,117.57,117.53,646.78565601]
[1769724563785,17.98423308,117.57,117.53,649.56747548]
[1769724564587,17.98423308,117.57,117.53,655.41403467]
[1769724571496,17.31339339,117.58,117.54,2.78181947]
[1769724572193,24.98039339,117.58,117.53,655.41403467]
[1769724572694,17.31339339,117.57,117.53,655.41403467]
[1769724576199,7.667,117.58,117.53,655.41403467]
[1769724576498,24.72762357,117.58,117.54,2.78181947]
[1769724577104,17.06062357,117.58,117.54,2.78181947]
[1769724577898,17.06062357,117.58,117.53,652.6322152]
[1769724578103,17.06062357,117.58,117.54,2.78181947]
[1769724587209,6.88498052,117.57,117.54,2.78181947]
[1769724587504,17.06062357,117.58,117.54,2.78181947]
[1769724587706,6.88516634,117.57,117.54,2.78181947]
[1769724587906,17.06062357,117.58,117.54,2.78181947]
[1769724588110,6.88516634,117.57,117.54,2.78181947]
[1769724588406,17.06062357,117.58,117.54,2.78181947]
[1769724588608,6.88904126,117.57,117.54,2.78181947]
[1769724588907,17.06062357,117.58,117.54,2.78181947]
[1769724589111,6.88903733,117.57,117.54,2.78181947]
[1769724589308,17.06062357,117.58,117.54,2.78181947]
[1769724589497,6.89034153,117.57,117.54,2.78181947]
[1769724589705,17.06062357,117.58,117.54,2.78181947]
[1769724590002,6.89034153,117.57,117.54,2.78181947]
[1769724590301,17.06062357,117.58,117.54,2.78181947]
[1769724590496,6.89078539,117.57,117.54,2.78181947]
[1769724590701,17.06062357,117.58,117.54,2.78181947]
[1769724590910,6.89078539,117.57,117.54,2.78181947]
[1769724591097,17.06062357,117.58,117.54,2.78181947]
[1769724591297,6.89127235,117.57,117.54,2.78181947]
[1769724591501,17.06062357,117.58,117.54,2.78181947]
[1769724591701,6.89127235,117.57,117.54,2.78181947]
[1769724591907,17.06062357,117.58,117.54,2.78181947]
[1769724592109,6.89127235,117.57,117.54,2.78181947]
[1769724592312,17.06062357,117.58,117.54,2.78181947]
[1769724592502,6.89180389,117.57,117.54,2.78181947]
[1769724592702,17.06062357,117.58,117.54,2.78181947]
[1769724593002,6.89180389,117.57,117.54,2.78181947]
[1769724593203,17.06062357,117.58,117.54,2.78181947]
[1769724593401,6.8919351,117.57,117.54,2.78181947]
[1769724593601,17.06062357,117.58,117.54,2.78181947]
[1769724593797,6.8919351,117.57,117.54,2.78181947]
[1769724594002,17.06062357,117.58,117.54,2.78181947]
[1769724594205,6.89206066,117.57,117.54,2.78181947]
[1769724594402,17.06062357,117.58,117.54,2.78181947]
[1769724594706,6.89206066,117.57,117.54,2.78181947]
[1769724594907,17.06062357,117.58,117.54,2.78181947]
[1769724595211,6.88226512,117.57,117.54,2.78181947]
[1769724595411,17.06062357,117.58,117.54,2.78181947]
[1769724595607,6.88237909,117.57,117.54,2.78181947]
[1769724595808,17.06062357,117.58,117.54,2.78181947]
[1769724596009,6.88237909,117.57,117.54,2.78181947]
[1769724596210,17.06062357,117.58,117.54,2.78181947]
[1769724596409,6.88253801,117.57,117.54,2.78181947]
[1769724596615,17.06062357,117.58,117.54,2.78181947]
[1769724596921,6.88253801,117.57,117.54,2.78181947]
[1769724597113,17.06062357,117.58,117.54,2.78181947]
[1769724597313,6.88270413,117.57,117.54,2.78181947]
[1769724597520,17.06062357,117.58,117.54,2.78181947]
[1769724597714,6.88264794,117.57,117.54,2.78181947]
[1769724597910,17.06062357,117.58,117.54,2.78181947]
[1769724598111,6.88264794,117.57,117.54,2.78181947]
[1769724598311,17.06062357,117.58,117.54,2.78181947]
[1769724598510,6.88282349,117.57,117.54,2.78181947]
[1769724598711,17.06062357,117.58,117.54,2.78181947]
[1769724598917,6.88282349,117.57,117.54,2.78181947]
[1769724599118,17.06062357,117.58,117.54,2.78181947]
[1769724599320,6.88295649,117.57,117.54,2.78181947]
[1769724599617,13.40130867,117.61,117.53,652.6322152]
[1769724599618,16.55325662,117.62,117.56,8.29342124]
[1769724599809,16.55325662,117.62,117.58,2.78181947]
[1769724600413,24.21835662,117.61,117.58,2.78181947]
[1769724602522,16.55325662,117.61,117.58,2.78181947]
[1769724602814,2.78181947,117.65,117.53,766.09865601]
[1769724602815,7.92038376,117.65,117.6,2.78181947]
[1769724603218,10.70220323,117.65,117.59,2.78181947]
[1769724604121,2.78181947,117.63,117.57,8.27287529]
[1769724604321,10.44561947,117.63,117.57,15.94027529]
[1769724604624,26.99887609,117.63,117.57,15.94027529]
[1769724608124,26.99887609,117.63,117.57,13.15845582]
[1769724608326,24.21705662,117.63,117.57,15.94027529]
[1769724608826,24.21705662,117.63,117.57,8.27287529]
[1769724609827,26.99887609,117.63,117.57,8.27287529]
[1769724611431,6.82754673,117.62,117.57,8.27287529]
[1769724611620,26.99669069,117.63,117.57,8.27068989]
[1769724611816,6.82754673,117.62,117.57,8.27068989]
[1769724612021,26.99669069,117.63,117.57,8.27068989]
[1769724612522,24.21755662,117.62,117.57,8.27068989]
[1769724616231,16.55325662,117.61,117.55,17.52468483]
[1769724616427,19.33289069,117.61,117.55,20.3043189]
[1769724616728,19.33289069,117.6,117.55,20.3043189]
[1769724616933,19.33289069,117.6,117.55,17.52468483]
[1769724617735,16.55325662,117.58,117.53,667.16997491]
[1769724618331,24.22055662,117.58,117.53,667.16997491]
[1769724619734,27.00019069,117.58,117.53,664.39034084]
[1769724620733,24.22055662,117.58,117.53,664.39034084]
[1769724620935,16.55325662,117.58,117.53,664.39034084]
[1769724622137,16.55325662,117.58,117.53,667.16997491]
[1769724629043,16.55325662,117.58,117.54,18.08049526]
[1769724634840,16.55325662,117.58,117.54,20.86012933]
[1769724648558,16.55325662,117.58,117.54,18.08049526]
[1769724648752,16.55325662,117.58,117.54,20.86012933]
[1769724658968,18.12596153,117.59,117.54,20.86012933]
[1769724659273,6.83946857,117.58,117.54,20.86012933]
[1769724659470,18.12596153,117.59,117.54,20.86012933]
[1769724659665,6.83959748,117.58,117.54,20.86012933]
[1769724659964,18.12596153,117.59,117.54,20.86012933]
[1769724660163,6.83959748,117.58,117.54,20.86012933]
[1769724660373,18.12596153,117.59,117.54,20.86012933]
[1769724660572,6.84224323,117.58,117.54,20.86012933]
[1769724660870,18.12596153,117.59,117.54,20.86012933]
[1769724661070,6.84224323,117.58,117.54,20.86012933]
[1769724661372,18.12596153,117.59,117.54,20.86012933]
[1769724661570,6.84673203,117.58,117.54,20.86012933]
[1769724661766,28.5718956,117.59,117.54,18.08049526]
[1769724661966,6.84678816,117.58,117.54,18.08049526]
[1769724662168,28.5718956,117.59,117.54,18.08049526]
[1769724662368,6.84682878,117.58,117.54,18.08049526]
[1769724662570,28.5718956,117.59,117.54,18.08049526]
[1769724662869,6.8468646,117.58,117.54,18.08049526]
[1769724663178,28.5718956,117.59,117.54,18.08049526]
[1769724663372,6.84684151,117.58,117.54,18.08049526]
[1769724663670,28.5718956,117.59,117.54,18.08049526]
[1769724663869,6.84687602,117.58,117.54,18.08049526]
[1769724664067,28.5718956,117.59,117.54,18.08049526]
[1769724664270,6.84687602,117.58,117.54,18.08049526]
[1769724664569,28.5718956,117.59,117.54,18.08049526]
[1769724664769,6.84698874,117.58,117.54,18.08049526]
[1769724664966,28.5718956,117.59,117.54,18.08049526]
[1769724665164,6.84698874,117.58,117.54,18.08049526]
[1769724665375,28.5718956,117.59,117.54,18.08049526]
[1769724665672,6.84711515,117.58,117.54,18.08049526]
[1769724665872,28.5718956,117.59,117.54,18.08049526]
[1769724666064,6.84711515,117.58,117.54,18.08049526]
[1769724666261,28.5718956,117.59,117.54,18.08049526]
[1769724666466,6.84725663,117.58,117.54,18.08049526]
[1769724666665,28.5718956,117.59,117.54,18.08049526]
[1769724666974,6.84725663,117.58,117.54,18.08049526]
[1769724667177,28.5718956,117.59,117.54,18.08049526]
[1769724667373,6.84736421,117.58,117.54,18.08049526]
[1769724667574,28.5718956,117.59,117.54,18.08049526]
[1769724667874,6.84740017,117.58,117.54,18.08049526]
[1769724668173,28.5718956,117.59,117.54,18.08049526]
[1769724668376,6.84747408,117.58,117.54,18.08049526]
[1769724668676,28.5718956,117.59,117.54,18.08049526]
[1769724668875,6.84751009,117.58,117.54,18.08049526]
[1769724669077,28.5718956,117.59,117.54,18.08049526]
[1769724669377,6.84751009,117.58,117.54,18.08049526]
[1769724669678,28.5718956,117.59,117.54,18.08049526]
[1769724669878,6.84763194,117.58,117.54,18.08049526]
[1769724670082,28.5718956,117.59,117.54,18.08049526]
[1769724670379,6.84763194,117.58,117.54,18.08049526]
[1769724670580,28.5718956,117.59,117.54,18.08049526]
[1769724670874,6.84776704,117.58,117.54,18.08049526]
[1769724671178,18.12596153,117.59,117.54,20.86012933]
[1769724671478,6.84794482,117.58,117.54,20.86012933]
[1769724671677,18.12596153,117.59,117.54,20.86172956]
[1769724671878,6.84797868,117.58,117.54,20.86172956]
[1769724672078,18.12596153,117.59,117.54,20.86172956]
[1769724672374,6.84797868,117.58,117.54,18.08049526]
[1769724672574,18.12596153,117.59,117.54,18.08049526]
[1769724672777,6.84821963,117.58,117.54,18.08049526]
[1769724672977,18.12596153,117.59,117.54,18.08049526]
[1769724673178,6.84821963,117.58,117.54,18.08049526]
[1769724673379,18.12596153,117.59,117.54,18.08049526]
[1769724673572,6.84849824,117.58,117.54,18.08049526]
[1769724673772,18.12596153,117.59,117.54,18.08049526]
[1769724673973,6.84849824,117.58,117.54,18.08049526]
[1769724674171,18.12596153,117.59,117.54,18.08049526]
[1769724674371,6.84861092,117.58,117.54,18.08049526]
[1769724674579,18.12596153,117.59,117.54,18.08049526]
[1769724674778,6.84863895,117.58,117.54,18.08049526]
[1769724674982,18.12596153,117.59,117.54,18.08049526]
[1769724675182,6.84863895,117.58,117.54,18.08049526]
[1769724675372,18.12596153,117.59,117.54,18.08049526]
[1769724675572,6.84879634,117.58,117.54,18.08049526]
[1769724675778,18.12596153,117.59,117.54,18.08049526]
[1769724676079,6.84879634,117.58,117.54,18.08049526]
[1769724676275,18.12596153,117.59,117.54,18.08049526]
[1769724676477,6.84905687,117.58,117.54,18.08049526]
[1769724676675,18.12596153,117.59,117.54,18.08049526]
[1769724676973,6.84905687,117.58,117.54,18.08049526]
[1769724677173,18.12596153,117.59,117.54,18.08049526]
[1769724677374,6.84925204,117.58,117.54,18.08049526]
[1769724677573,18.12596153,117.59,117.54,18.08049526]
[1769724677782,6.84927226,117.58,117.54,18.08049526]
[1769724678085,28.57289583,117.6,117.54,18.08049526]
[1769724678380,6.8492644,117.59,117.54,18.08049526]
[1769724678583,6.8492644,117.58,117.54,18.08049526]
[1769724678781,28.57289583,117.6,117.54,18.08049526]
[1769724678975,6.84952068,117.59,117.54,18.08049526]
[1769724679176,6.84952068,117.58,117.54,18.08049526]
[1769724679378,28.57289583,117.6,117.54,18.08049526]
[1769724679578,6.84985164,117.59,117.54,20.86172956]
[1769724679782,6.84985164,117.58,117.54,20.86172956]
[1769724679985,28.57289583,117.6,117.54,20.86172956]
[1769724680184,6.84985164,117.59,117.54,20.86172956]
[1769724680384,28.57289583,117.6,117.54,20.86172956]
[1769724680385,6.84985164,117.58,117.54,20.86172956]
[1769724680587,18.12596153,117.59,117.54,20.86172956]
[1769724680883,6.85035547,117.58,117.54,20.86172956]
[1769724681077,18.12596153,117.59,117.54,20.86172956]
[1769724681277,6.8503594,117.58,117.54,20.86172956]
[1769724681484,18.12596153,117.59,117.54,20.86172956]
[1769724681672,6.85035696,117.58,117.54,20.86172956]